lending/lending_fUSD_20240721
["ID","MTS","AMOUNT","RATE_DAILY","PERIOD"]
[332805030,1721537443076,-9129.24550259,0.00022,4]
[332805032,1721537443087,-151.0,0.00022,7]
[332805035,1721537443097,-151.0,0.00022,7]
[332805038,1721537443106,-305.703796,0.00022,7]
[332805040,1721537443115,-151.0,0.00022,7]
[332805042,1721537443125,-305.703796,0.00022,7]
[332805044,1721537443134,-151.0,0.00022,7]
[332805046,1721537443143,-151.0,0.00022,7]
[332805048,1721537443153,-151.0,0.00022,7]
[332805050,1721537443162,-151.0,0.00022,7]
[332805051,1721537443173,-151.0,0.00022,7]
[332805053,1721537443182,-151.0,0.00022,7]
[332805055,1721537443191,-168.8,0.0002208,2]
[332805057,1721537443200,-175.70923073,0.0002215,2]
[332805058,1721537443209,-220.0,0.0002224,2]
[332805060,1721537443219,-155.60558696,0.00022256,2]
[332805062,1721537443228,-299.37680949,0.00022375,2]
[332805064,1721537443237,-151.0,0.00022377,7]
[332805066,1721537443248,-151.0,0.00022377,7]
[332805068,1721537443259,-229.096359,0.00022377,7]
[332805070,1721537443269,-229.096359,0.00022377,7]
[332805072,1721537443278,-163.98589,0.00022456,7]
[332805074,1721537443288,-151.0,0.00022456,7]
[332805076,1721537443297,-300.690123,0.00022456,7]
[332805077,1721537443306,-151.0,0.00022456,7]
[332805079,1721537443315,-151.0,0.00022456,7]
[332805081,1721537443324,-159.502795,0.00022456,7]
[332805083,1721537443334,-151.479913,0.00022456,7]
[332805085,1721537443343,-151.0,0.00022456,7]
[332805087,1721537443352,-151.0,0.00022456,7]
[332805088,1721537443361,-151.0,0.00022456,7]
[332805090,1721537443371,-151.0,0.00022456,7]
[332805092,1721537443380,-181.722847,0.00022456,7]
[332805094,1721537443389,-181.722847,0.00022456,7]
[332805096,1721537443399,-158.224155,0.00022456,7]
[332805098,1721537443409,-151.0,0.00022456,7]
[332805100,1721537443420,-151.0,0.00022456,7]
[332805102,1721537443430,-161.746919,0.00022456,7]
[332805104,1721537443439,-239.041361,0.00022456,7]
[332805106,1721537443448,-151.0,0.00022456,7]
[332805108,1721537443457,-195.646456,0.00022456,7]
[332805110,1721537443467,-151.0,0.00022456,7]
[332805111,1721537443476,-151.0,0.00022456,7]
[332805113,1721537443486,-150.0,0.00022495,2]
[332805115,1721537443495,-12821.64235029,0.000225,3]
[332805117,1721537443504,-748.899216,0.00022606,2]
[332805119,1721537443514,-220.0,0.0002279,2]
[332805121,1721537443525,-151.0,0.00022847,7]
[332805123,1721537443535,-350.0,0.00023,2]
[332805124,1721537443544,-167.0,0.00023034,2]
[332805126,1721537443554,-150.0,0.00023071,2]
[332805128,1721537443563,-1000.0,0.00023119,2]
[332805130,1721537443572,-180.0,0.00023205,2]
[332805132,1721537443582,-1613.0,0.00023246,2]
[332805134,1721537443591,-581.365323,0.00023288,7]
[332805136,1721537443600,-581.365323,0.00023288,7]
[332805138,1721537443612,-581.365323,0.00023288,7]
[332805140,1721537443622,-581.365323,0.00023288,7]
[332805142,1721537443635,-1292.83,0.0002335,2]
[332805144,1721537443644,-220.0,0.0002335,2]
[332805146,1721537443654,-155.60558696,0.00023489,2]
[332805147,1721537443664,-1929.33186776,0.00023555,2]
[332805149,1721537443674,-150.0,0.00023648,2]
[332805151,1721537443685,-155.60558696,0.00023665,2]
[332805153,1721537443695,-232.634233,0.00023678,7]
[332805155,1721537443705,-151.810545,0.00023678,7]
[332805157,1721537443717,-151.0,0.00023678,7]
[332805159,1721537443727,-151.542108,0.00023678,7]
[332805161,1721537443737,-338.03,0.00023733,2]
[332805162,1721537443746,-748.899216,0.00023753,2]
[332805163,1721537443755,-2090.91328,0.0002386,2]
[332805164,1721537443764,-1000.0,0.000239,2]
[332805165,1721537443774,-1000.0,0.000239,2]
[332805166,1721537443785,-220.0,0.000239,2]
[332805167,1721537443795,-428.59136598,0.000239,2]
[332805168,1721537443805,-435.31021242,0.000239,2]
[332805169,1721537443815,-661.46185209,0.00023997,5]
[332805170,1721537443825,-151.441154,0.00023997,7]
[332805171,1721537443835,-151.0,0.00023997,7]
[332805172,1721537443845,-154.138746,0.00023997,7]
[332805173,1721537443856,-434.757472,0.00023997,7]
[332805174,1721537443867,-434.757472,0.00023997,7]
[332805175,1721537443877,-151.0,0.00023997,7]
[332805176,1721537443888,-151.0,0.00023997,7]
[332805177,1721537443897,-151.0,0.00023997,7]
[332805178,1721537443906,-151.0,0.00023997,7]
[332805179,1721537443917,-151.95679,0.00023997,7]
[332805180,1721537443927,-283.942489,0.00023997,7]
[332805181,1721537443936,-151.0,0.00023997,7]
[332805183,1721537443946,-151.0,0.00023997,7]
[332805185,1721537443955,-155.402012,0.00023997,7]
[332805186,1721537443965,-151.0,0.00023997,7]
[332805188,1721537443974,-181.722847,0.00023997,7]
[332805190,1721537443984,-181.722847,0.00023997,7]
[332805192,1721537443993,-151.0,0.00023997,7]
[332805194,1721537444003,-151.0,0.00023997,7]
[332805196,1721537444013,-151.0,0.00023997,7]
[332805198,1721537444023,-151.0,0.00023997,7]
[332805200,1721537444032,-151.0,0.00023997,7]
[332805202,1721537444042,-151.0,0.00023997,7]
[332805203,1721537444051,-151.0,0.00023997,7]
[332805205,1721537444060,-229.096359,0.00023997,7]
[332805207,1721537444069,-229.096359,0.00023997,7]
[332805209,1721537444079,-151.0,0.00023997,7]
[332805211,1721537444088,-305.703796,0.00023997,7]
[332805213,1721537444098,-151.0,0.00023997,7]
[332805215,1721537444107,-305.703796,0.00023997,7]
[332805217,1721537444118,-151.0,0.00023997,7]
[332805219,1721537444128,-151.0,0.00023997,7]
[332805221,1721537444138,-152.780493,0.00023997,7]
[332805223,1721537444148,-151.0,0.00023997,7]
[332805225,1721537444157,-581.365323,0.00023997,7]
[332805227,1721537444167,-581.365323,0.00023997,7]
[332805229,1721537444178,-151.0,0.00023997,7]
[332805231,1721537444187,-151.0,0.00023997,7]
[332805233,1721537444197,-61857.82044932,0.00023997,4]
[332805235,1721537444207,-1644.99247441,0.00024,2]
[332805237,1721537444216,-34364.45196841,0.00024,7]
[332805239,1721537444225,-7604269.72,0.00024,2]
[332805241,1721537444234,-151.0,0.00024,7]
[332805242,1721537444243,-151.0,0.00024,7]
[332805244,1721537444253,-151.0,0.00024,7]
[332805246,1721537444263,-434.757472,0.00024,7]
[332805248,1721537444273,-434.757472,0.00024,7]
[332805250,1721537444281,-151.0,0.00024,7]
[332805252,1721537444291,-151.0,0.00024,7]
[332805254,1721537444300,-151.0,0.00024,7]
[332805256,1721537444309,-151.0,0.00024,7]
[332805258,1721537444318,-151.0,0.00024,7]
[332805259,1721537444328,-151.0,0.00024,7]
[332805261,1721537444338,-181.722847,0.00024,7]
[332805263,1721537444347,-181.722847,0.00024,7]
[332805265,1721537444357,-151.0,0.00024,7]
[332805267,1721537444366,-151.0,0.00024,7]
[332805269,1721537444375,-151.0,0.00024,7]
[332805271,1721537444384,-151.0,0.00024,7]
[332805273,1721537444395,-151.0,0.00024,7]
[332805275,1721537444405,-151.0,0.00024,7]
[332805277,1721537444414,-151.0,0.00024,7]
[332805279,1721537444424,-229.096359,0.00024,7]
[332805281,1721537444433,-229.096359,0.00024,7]
[332805283,1721537444443,-151.0,0.00024,7]
[332805285,1721537444453,-305.703796,0.00024,7]
[332805287,1721537444462,-151.0,0.00024,7]
[332805289,1721537444471,-305.703796,0.00024,7]
[332805291,1721537444481,-155.043285,0.00024,7]
[332805293,1721537444491,-151.0,0.00024,7]
[332805295,1721537444500,-151.0,0.00024,7]
[332805296,1721537444510,-581.365323,0.00024,7]
[332805298,1721537444519,-581.365323,0.00024,7]
[332805300,1721537444529,-151.0,0.00024,7]
[332805302,1721537444539,-151.0,0.00024,7]
[332805304,1721537444548,-152.0,0.00024179,3]
[332805306,1721537444557,-1000.0,0.000242,2]
[332805308,1721537444567,-225.0,0.000242,2]
[332805310,1721537444577,-356.0,0.000242,2]
[332805312,1721537444587,-150.0,0.00024225,2]
[332805314,1721537444596,-150.0,0.00024274,2]
[332805316,1721537444605,-150.0,0.00024274,2]
[332805318,1721537444615,-150.0,0.00024274,2]
[332805320,1721537444624,-150.0,0.00024274,2]
[332805322,1721537444636,-428.59136598,0.000244,2]
[332805324,1721537444645,-435.31021241,0.000244,2]
[332805326,1721537444655,-175.2,0.0002441,2]
[332805328,1721537444665,-220.0,0.0002445,2]
[332805330,1721537444675,-156.0,0.0002458,2]
[332805332,1721537444684,-501.1585246,0.00024625,2]
[332805334,1721537444693,-500.0,0.000248,2]
[332805336,1721537444702,-200.0,0.000248,2]
[332805338,1721537444712,-150.0,0.00024802,2]
[332805340,1721537444722,-2000.0,0.0002484,2]
[332805342,1721537444731,-200.0,0.0002484,2]
[332805344,1721537444741,-1618.15084334,0.0002488,2]
[332805346,1721537444750,-150.0,0.0002489,3]
[332805347,1721537444759,-5800.0,0.000249,2]
[332805349,1721537444769,-3419.1817139,0.000249,2]
[332805351,1721537444778,-2255.69644387,0.000249,2]
[332805353,1721537444787,-9170.74069575,0.000249,2]
[332805355,1721537444797,-175.70923073,0.000249,2]
[332805357,1721537444807,-748.899216,0.000249,2]
[332805359,1721537444816,-428.59136598,0.000249,2]
[332805361,1721537444826,-435.31021241,0.000249,2]
[332805363,1721537444835,-158.65267834,0.0002492,2]
[332805365,1721537444845,-4235.31566667,0.0002492,2]
[332805367,1721537444854,-701.99,0.00024931,2]
[332805369,1721537444864,-204.60198951,0.00024999,2]
[332805371,1721537444874,-5941.19285388,0.00024999,2]
[332805373,1721537444883,-172723.53473055,0.00025,2]
[332805376,1721537444899,-262951.28200962,0.00025,2]
[332805378,1721537444910,-78896.43625104,0.00025,2]
[332805385,1721537444978,-781.5113618,0.00025,2]
[332805706,1721537448579,-534.84389696,0.00016033,2]
[332805708,1721537448589,-395.55957692,0.00018635,2]
[332805710,1721537448599,-2863.92062612,0.00025,2]
[332805714,1721537448620,-1400.13240077,0.00025,2]
[332805717,1721537448648,-6923.95608042,0.00025,2]
[332805738,1721537448844,-671.82,0.00025,2]
[332805740,1721537448856,-2151.97247702,0.00025,2]
[332805745,1721537448885,-3134.81698266,0.00025,2]
[332806137,1721537612526,364.96,0.00024726,120]
[332806138,1721537637333,164.37,0.00021924,30]
[332806143,1721538165838,150.67,0.00020146,30]
[332806187,1721538632113,-1033.93200924,0.00014451,2]
[332806189,1721538632125,-228.1041369,0.00014451,2]
[332806190,1721538632135,-150.0,0.00015,2]
[332806191,1721538632143,-850.01068343,0.000167,2]
[332806192,1721538632229,-166.98931657,0.000167,2]
[332806193,1721538632238,-1078.29077364,0.000167,2]
[332806194,1721538632342,-1405.70922636,0.000167,2]
[332806195,1721538632352,-200.0,0.00017,2]
[332806196,1721538632362,-155.60558696,0.00018307,2]
[332806197,1721538632371,-348.22,0.00018723,2]
[332806198,1721538632382,-253.47012572,0.000189,5]
[332806199,1721538632393,-2138.12851078,0.000189,5]
[332806200,1721538632404,-522.12226842,0.000189,5]
[332806212,1721538638177,-500.27909508,0.000189,5]
[332806213,1721538638187,-250.0,0.00019,2]
[332806214,1721538638198,-313.34505074,0.00019291,2]
[332806215,1721538638237,-489.12511033,0.00019291,2]
[332806216,1721538638296,-598.68983893,0.00019291,2]
[332806217,1721538638306,-412.23827422,0.00019291,2]
[332806218,1721538638356,-268.69248,0.00019291,2]
[332806219,1721538638416,-7629.86924578,0.00019291,2]
[332806220,1721538638426,-499.99,0.00019291,2]
[332806221,1721538638436,-1419.97,0.00019291,2]
[332806222,1721538638446,-2206.09,0.00019402,2]
[332806223,1721538638456,-201.0,0.0001949,2]
[332806224,1721538638466,-250.0,0.00019693,2]
[332806225,1721538638476,-201.0,0.0002004,2]
[332806226,1721538638486,-213.0,0.0002004,2]
[332806227,1721538638496,-155.60558696,0.0002005,2]
[332806228,1721538638506,-448.7960396,0.00020146,2]
[332806229,1721538638515,-340.38044388,0.00020146,7]
[332806230,1721538638525,-231.28525684,0.00020146,2]
[332806231,1721538638534,-21300.11831857,0.00020146,2]
[332806232,1721538638545,-1829.28601923,0.00020146,2]
[332806235,1721538638557,-87288.6918831,0.00020146,2]
[332806236,1721538638567,-168.43,0.00020226,2]
[332806238,1721538638577,-151.0,0.00020268,2]
[332806240,1721538638587,-250.0,0.00020413,2]
[332806242,1721538638597,-180.05,0.00020482,2]
[332806244,1721538638607,-201.0,0.0002059,2]
[332806246,1721538638616,-213.0,0.0002059,2]
[332806248,1721538638626,-1000.0,0.00020614,2]
[332806250,1721538638638,-169.69,0.00020618,2]
[332806252,1721538638647,-231.60289446,0.00020821,2]
[332806254,1721538638657,-151.0,0.00020944,2]
[332806256,1721538638667,-348.22,0.00020987,2]
[332806258,1721538638677,-356.74,0.0002099,3]
[332806259,1721538638687,-306.15925383,0.00020999,2]
[332806261,1721538638697,-3051.00113365,0.00020999,2]
[332806263,1721538638707,-2266.59415971,0.00021,2]
[332806266,1721538638716,-300.0,0.00021,2]
[332806268,1721538638727,-201.0,0.0002114,2]
[332806270,1721538638737,-200.0,0.0002114,2]
[332806272,1721538638747,-213.0,0.0002114,2]
[332806274,1721538638757,-717.905463,0.00021145,2]
[332806276,1721538638767,-717.905463,0.00021145,2]
[332806278,1721538638777,-7270.89241758,0.00021195,2]
[332806280,1721538638788,-7752.95886303,0.00021216,2]
[332806283,1721538638805,-1168.91354638,0.00021216,2]
[332806285,1721538638817,-1659.99434364,0.00021216,2]
[332806287,1721538638829,-2040.00565636,0.00021216,2]
[332806291,1721538638852,-1869.7443923,0.00021216,2]
[332806293,1721538638864,-7272.65439133,0.00021216,2]
[332806458,1721538640226,-298.87830355,0.00020999,2]
[332806462,1721538640236,-197.19794088,0.00021216,2]
[332806482,1721538640302,-1938.53086608,0.00021216,2]
[332806485,1721538640312,-167.11378454,0.00021476,2]
[332806488,1721538640322,-3000.0,0.000216,2]
[332806490,1721538640333,-151.0,0.0002162,2]
[332806492,1721538640343,-1522.9613,0.00021664,2]
[332806494,1721538640352,-201.0,0.0002169,2]
[332806496,1721538640363,-200.0,0.0002169,2]
[332806498,1721538640373,-213.0,0.0002169,2]
[332806500,1721538640384,-168.43,0.00021895,2]
[332806502,1721538640394,-426.93,0.00021918,2]
[332806504,1721538640404,-150.0,0.00021918,2]
[332806506,1721538640413,-364.96,0.00021978,2]
[332806508,1721538640425,-201.0,0.0002224,2]
[332806510,1721538640435,-200.0,0.0002224,2]
[332806512,1721538640444,-213.0,0.0002224,2]
[332806514,1721538640455,-151.0,0.00022296,2]
[332806516,1721538640464,-150.0,0.00022495,2]
[332806518,1721538640474,-201.0,0.0002279,2]
[332806520,1721538640483,-200.0,0.0002279,2]
[332806522,1721538640493,-213.0,0.0002279,2]
[332806524,1721538640503,-155.60558696,0.00022809,2]
[332806526,1721538640512,-7270.89241755,0.00022894,2]
[332806528,1721538640522,-151.0,0.00022972,2]
[332806530,1721538640532,-350.0,0.00023,2]
[332806532,1721538640542,-150.0,0.00023071,2]
[332806534,1721538640552,-1000.0,0.00023191,2]
[332806536,1721538640561,-180.0,0.00023205,2]
[332806538,1721538640571,-348.22,0.00023251,2]
[332806540,1721538640581,-201.0,0.0002335,2]
[332806542,1721538640591,-200.0,0.0002335,2]
[332806545,1721538640601,-213.0,0.0002335,2]
[332806547,1721538640611,-529.91638382,0.00023451,2]
[332806548,1721538640620,-168.43,0.00023564,2]
[332806550,1721538640629,-151.0,0.00023648,2]
[332806553,1721538640641,-150.0,0.00023648,2]
[332806555,1721538640650,-150.0,0.0002373,3]
[332806557,1721538640660,-529.91638382,0.00023873,2]
[332806559,1721538640669,-3974.83128712,0.00023873,2]
[332806561,1721538640678,-1000.0,0.00023897,2]
[332806563,1721538640687,-216.0,0.00023897,2]
[332806565,1721538640697,-215.0,0.000239,2]
[332806567,1721538640706,-201.0,0.000239,2]
[332806569,1721538640715,-200.0,0.000239,2]
[332806571,1721538640724,-213.0,0.000239,2]
[332806573,1721538640733,-227.49811675,0.00024124,2]
[332806575,1721538640744,-155.0,0.00024124,2]
[332806577,1721538640754,-264.09660197,0.00024124,2]
[332806579,1721538640764,-5000.0,0.00024124,2]
[332806581,1721538640773,-197.46083795,0.00024124,2]
[332806583,1721538640782,-15065.84631606,0.00024124,2]
[332806585,1721538640791,-150.0,0.00024225,2]
[332806587,1721538640800,-151.0,0.00024324,2]
[332806589,1721538640810,-154.23770087,0.00024339,2]
[332806591,1721538640821,-839.04866691,0.00024419,2]
[332806593,1721538640832,-215.0,0.0002445,2]
[332806595,1721538640842,-201.0,0.0002445,2]
[332806598,1721538640854,-200.0,0.0002445,2]
[332806600,1721538640864,-213.0,0.0002445,2]
[332806602,1721538640874,-7270.89241755,0.00024594,2]
[332806604,1721538640885,-500.0,0.000248,2]
[332806606,1721538640896,-150.0,0.00024802,2]
[332806608,1721538640905,-150.0,0.0002489,4]
[332806610,1721538640914,-418.00060075,0.00024899,10]
[332806612,1721538640926,-328.66554707,0.00024899,2]
[332806614,1721538640938,-1929.33186776,0.00024899,2]
[332806617,1721538640949,-182.50200537,0.000249,4]
[332806619,1721538640961,-496.0848913,0.00024979,2]
[332806621,1721538640970,-2498.02656989,0.00024979,2]
[332806623,1721538640980,-276.62111547,0.00024979,2]
[332806625,1721538640990,-2022.4432734,0.00024989,2]
[332806627,1721538640999,-438.84834633,0.00024989,2]
[332806629,1721538641008,-153.0,0.0002499,2]
[332806631,1721538641017,-361.15444644,0.0002499,5]
[332806633,1721538641026,-153.0,0.00024996,2]
[332806635,1721538641035,-2020.79078195,0.00024999,2]
[332806637,1721538641045,-581.48731623,0.00024999,2]
[332806639,1721538641054,-672.74,0.00024999,2]
[332806641,1721538641063,-25637.60968527,0.00025,2]
[332806643,1721538641075,-1015.68054681,0.00025,2]
[332806645,1721538641086,-1120.38693756,0.00025,2]
[332806653,1721538641156,-405.89472525,0.00024899,2]
[332806656,1721538641167,-101.44830697,0.00024899,2]
[332806658,1721538641176,-1030.14397899,0.00025,2]
[332806660,1721538641192,-505.31156249,0.00025,2]
[332806662,1721538641204,-1221.64794699,0.00025,2]
[332806664,1721538641215,-41167.66283741,0.00025,2]
[332806667,1721538641227,-173700.62690797,0.00025,2]
[332806669,1721538641238,-133962.65736628,0.00025,2]
[332806672,1721538641258,-924.899999,0.00025,2]
[332806674,1721538641270,-1642.8995,0.00025,2]
[332806676,1721538641282,-488.3556391,0.00025,2]
[332806772,1721538642364,-3974.83128712,0.00023451,2]
[332806774,1721538642374,-213.64227198,0.00024996,2]
[332806776,1721538642384,-3109.24119314,0.00025,2]
[332806780,1721538642420,-488.92016376,0.00025,2]
[332806880,1721538643361,-853.02521005,0.00025,2]
[332806897,1721538643527,-572.21,0.00025,2]
[332806899,1721538643538,-6584.2221912,0.00025,2]
[332806904,1721538643586,-13289.23339859,0.00025,2]
[332807164,1721538648554,-155.0,0.00023873,2]
[332807166,1721538648564,-3808.32370779,0.00025,2]
[332807168,1721538648576,-373.20512229,0.00025,2]
[332807277,1721538649630,-710.84896191,0.00025,2]
[332807278,1721538649856,-1215.00703085,0.00025,2]
[332807281,1721538649929,-65254.09182587,0.00025,2]
[332807283,1721538649942,-1879.81521279,0.00025,2]
[332807286,1721538649959,-10344.611928,0.00025,2]
[332807606,1721539504943,203.83,0.00021373,30]
[332807607,1721539508171,1500000.0,0.00014,2]
[332807608,1721539508200,3397853.65246432,0.00014,2]
[332807609,1721539519550,4533.77661094,9e-05,2]
[332807610,1721539529536,9664.21198276,0.000118,2]
[332807611,1721539535906,2385.54367464,0.00011,2]
[332807612,1721539583882,201.16723151,0.00011,2]
[332807613,1721539586396,20358.82820975,0.00011,2]
[332807614,1721539595822,176.20154036,0.00011,2]
[332807615,1721539603296,400.17812032,0.00011,2]
[332807616,1721539617896,155.0,0.00011,2]
[332807617,1721539618842,184.97390296,0.00011,2]
[332807618,1721539619715,181.17063275,0.00011,2]
[332807619,1721539619893,5847.57955401,0.00013333,2]
[332807620,1721539629523,155.0,0.00011,2]
[332807621,1721539634138,559.68832074,0.00011,2]
[332807623,1721539640816,205.0,9.8e-05,2]
[332807624,1721539645365,155.0,0.00011,2]
[332807625,1721539647895,7566.63074584,0.00011,2]
[332807626,1721539657697,78255.6358286,0.00011,2]
[332807627,1721539672393,241.82474309,0.00013333,2]
[332807628,1721539677557,348.80035671,0.00013333,2]
[332807629,1721539682724,3803.54258201,0.0001,2]
[332807630,1721539692514,1878.35501656,0.0001251,2]
[332807631,1721539695400,7566.63074584,0.00013333,2]
[332807632,1721539700909,525.41980997,0.00013333,2]
[332807633,1721539704419,178.44718519,0.00013333,2]
[332807635,1721539822906,5034.34097462,0.00013333,2]
[332807642,1721539832322,-300.0,0.00014999,2]
[332807643,1721539832332,-150.0,0.00014999,2]
[332807645,1721539832341,-36054.4685872,0.00015,2]
[332807647,1721539832352,-572.88577079,0.00015,2]
[332807649,1721539832364,-284.1080006,0.00015,2]
[332807651,1721539832402,-641.8811302,0.00015,2]
[332807652,1721539832414,-24448.85204068,0.00015,2]
[332807653,1721539832423,-3529.26447202,0.00016061,2]
[332807654,1721539832435,-775.19666386,0.00016061,2]
[332807655,1721539832448,-261.15578167,0.00016061,2]
[332807656,1721539832459,-1000.37172,0.00016061,2]
[332807657,1721539832476,-1444.14581354,0.00016061,2]
[332807658,1721539832487,-281.19172138,0.00016061,2]
[332807659,1721539832502,-75.57153778,0.00016061,2]
[332807660,1721539832512,-479.55237765,0.00016159,2]
[332807661,1721539832522,-386.57220184,0.00016161,2]
[332807662,1721539832531,-420.0,0.00016416,2]
[332807663,1721539832541,-1791.4308996,0.000167,2]
[332807664,1721539832552,-1132.51470823,0.000167,2]
[332807665,1721539832586,-436.64173545,0.000167,2]
[332807666,1721539832597,-1156.33265656,0.000167,2]
[332807667,1721539832609,-10657.98480016,0.000167,2]
[332807668,1721539832619,-2574.0,0.000168,2]
[332807669,1721539832628,-277.31,0.00017114,2]
[332807670,1721539832638,-171.39,0.00017221,2]
[332807671,1721539832647,-587.0,0.00017966,2]
[332807672,1721539832659,-416.8,0.00018137,2]
[332807673,1721539832669,-151.36587028,0.00018235,2]
[332807674,1721539832679,-499.99,0.00019398,2]
[332807675,1721539832688,-999.99,0.00019442,2]
[332807676,1721539832699,-503.698,0.00019456,2]
[332807677,1721539832708,-265.0,0.00019663,2]
[332807678,1721539832718,-664.83,0.000198,2]
[332807679,1721539832727,-155.60558696,0.00019974,2]
[332807680,1721539832738,-1367.79039601,0.0002,5]
[332807681,1721539832748,-500.44450129,0.0002,2]
[332807682,1721539832758,-2022.4432734,0.00020222,2]
[332807683,1721539832768,-155.60558696,0.00020708,2]
[332807684,1721539832777,-151.56390355,0.00020765,2]
[332807685,1721539832788,-931.50785726,0.00020999,2]
[332807686,1721539832800,-341.34701288,0.00020999,2]
[332807687,1721539832811,-3727.14512986,0.00020999,2]
[332807688,1721539832821,-227.61,0.0002126,2]
[332807689,1721539832831,-200.0,0.0002134,2]
[332807690,1721539832840,-239.64,0.00021516,2]
[332807692,1721539832850,-500.0,0.00021556,2]
[332807694,1721539832860,-218.97,0.00021557,2]
[332807696,1721539832870,-150.0,0.00021572,2]
[332807697,1721539832879,-250.0,0.00021584,2]
[332807698,1721539832888,-14786.66,0.00021586,2]
[332807699,1721539832898,-250.0,0.00021716,2]
[332807700,1721539832908,-155.60558696,0.00021742,2]
[332807701,1721539832918,-355.77,0.00021918,2]
[332807702,1721539832927,-150.0,0.00021918,2]
[332807703,1721539832937,-717.905463,0.00022058,2]
[332807704,1721539832947,-664.83,0.00022064,2]
[332807705,1721539832956,-540.9,0.00022211,2]
[332807706,1721539832966,-168.81,0.00022349,2]
[332807707,1721539832976,-150.0,0.00022495,2]
[332807708,1721539832986,-172.75,0.00022554,2]
[332807709,1721539832996,-3000.0,0.000227,2]
[332807710,1721539833006,-155.60558696,0.0002295,2]
[332807711,1721539833015,-150.0,0.00023071,2]
[332807712,1721539833025,-153.82027857,0.0002352,2]
[332807713,1721539833035,-1000.0,0.00023556,2]
[332807714,1721539833044,-155.60558696,0.00023586,2]
[332807715,1721539833054,-150.0,0.00023648,2]
[332807716,1721539833064,-180.0,0.0002374,2]
[332807717,1721539833073,-152.0,0.00023854,2]
[332807718,1721539833084,-181.67,0.0002402,2]
[332807719,1721539833094,-152.0,0.00024179,3]
[332807720,1721539833104,-355.69,0.00024192,2]
[332807721,1721539833115,-355.69,0.00024192,2]
[332807722,1721539833125,-150.0,0.00024225,2]
[332807723,1721539833136,-218.97,0.00024251,2]
[332807724,1721539833147,-664.83,0.00024328,2]
[332807725,1721539833156,-212.8123,0.0002465,2]
[332807726,1721539833166,-163.35105682,0.00024678,2]
[332807727,1721539833175,-335.84,0.0002474,3]
[332807728,1721539833185,-32522.0,0.0002475,2]
[332807729,1721539833195,-348.48554,0.0002475,2]
[332807730,1721539833205,-500.0,0.000248,2]
[332807731,1721539833215,-150.0,0.00024802,2]
[332807732,1721539833226,-1200.0,0.0002489,3]
[332807733,1721539833235,-1000.0,0.000249,2]
[332807734,1721539833245,-216.0,0.000249,2]
[332807735,1721539833255,-169.64893336,0.000249,2]
[332807736,1721539833265,-1702.8958,0.000249,2]
[332807737,1721539833275,-3384.0569,0.000249,2]
[332807738,1721539833285,-1000.0,0.000249,2]
[332807739,1721539833295,-5373.23802306,0.000249,2]
[332807740,1721539833305,-158.12858036,0.000249,2]
[332807741,1721539833315,-317.50447138,0.000249,2]
[332807742,1721539833325,-703.60010954,0.00024979,2]
[332807743,1721539833335,-3051.00113365,0.00024989,2]
[332807744,1721539833345,-229.67556373,0.00024989,3]
[332807745,1721539833355,-153.0,0.0002499,2]
[332807746,1721539833364,-604.70882922,0.00024996,2]